[Event "*** Qualifier 1: Titled Tuesday 3|2 Blitz"]
[Site "Chess.com"]
[Date "2017.04.04"]
[Round "4"]
[White "platy3"]
[Black "TenisMaster"]
[Result "0-1"]
[WhiteElo "2616"]
[BlackElo "2662"]
[TimeControl "180+2"]
[EndTime "13:55:54 PDT"]
[Termination "TenisMaster won by resignation"]

1. e4 {[%clk 0:03:02]} 1... e5 {[%clk 0:02:57.8]} 2. Nf3 {[%clk 0:03:02.6]} 2...
Nc6 {[%clk 0:02:58.5]} 3. Bb5 {[%clk 0:03:02.9]} 3... Nf6 {[%clk 0:02:59.4]} 4.
d3 {[%clk 0:03:02.5]} 4... Bc5 {[%clk 0:02:59.2]} 5. Bxc6 {[%clk 0:03:03.1]}
5... dxc6 {[%clk 0:02:59.9]} 6. Nbd2 {[%clk 0:03:04.7]} 6... Be6 {[%clk
0:02:46.8]} 7. Nb3 {[%clk 0:03:05.7]} 7... Bd6 {[%clk 0:02:45.2]} 8. Ng5 {[%clk
0:03:04.9]} 8... Bxb3 {[%clk 0:02:31.2]} 9. axb3 {[%clk 0:03:06.8]} 9... Nd7
{[%clk 0:02:32.1]} 10. O-O {[%clk 0:02:58.9]} 10... f6 {[%clk 0:02:28.2]} 11.
Nf3 {[%clk 0:02:57.2]} 11... Nc5 {[%clk 0:02:24.5]} 12. Nd2 {[%clk 0:02:48.3]}
12... Ne6 {[%clk 0:02:23.6]} 13. Nc4 {[%clk 0:02:47.6]} 13... c5 {[%clk
0:02:24.1]} 14. Qh5+ {[%clk 0:02:43.7]} 14... g6 {[%clk 0:02:17.4]} 15. Qg4
{[%clk 0:02:44.7]} 15... Qd7 {[%clk 0:02:14.1]} 16. Be3 {[%clk 0:02:45.7]} 16...
Be7 {[%clk 0:01:51.4]} 17. g3 {[%clk 0:02:42.8]} 17... O-O {[%clk 0:01:39.1]}
18. f4 {[%clk 0:02:31.1]} 18... exf4 {[%clk 0:01:39.2]} 19. gxf4 {[%clk
0:02:32.7]} 19... f5 {[%clk 0:01:39]} 20. Qg2 {[%clk 0:02:34.2]} 20... Nd4
{[%clk 0:01:35.8]} 21. e5 {[%clk 0:01:44]} 21... c6 {[%clk 0:01:28.6]} 22. Bxd4
{[%clk 0:01:39.6]} 22... Qxd4+ {[%clk 0:01:25.8]} 23. Qf2 {[%clk 0:01:40]} 23...
Qd5 {[%clk 0:01:23.5]} 24. Qf3 {[%clk 0:01:34.1]} 24... Qd4+ {[%clk 0:01:23.7]}
25. Qe3 {[%clk 0:01:31.8]} 25... Qd5 {[%clk 0:01:24]} 26. Qf3 {[%clk 0:01:20.4]}
26... Qd4+ {[%clk 0:01:24.2]} 27. Qf2 {[%clk 0:01:19.7]} 27... Qd7 {[%clk
0:01:15.3]} 28. Rfe1 {[%clk 0:01:20.3]} 28... b5 {[%clk 0:01:14.1]} 29. Nd2
{[%clk 0:01:18.2]} 29... a5 {[%clk 0:01:12]} 30. Nf3 {[%clk 0:01:18.6]} 30...
Qd5 {[%clk 0:01:10.7]} 31. h4 {[%clk 0:01:14.5]} 31... Kh8 {[%clk 0:01:08.4]}
32. Kh2 {[%clk 0:01:15]} 32... Rfd8 {[%clk 0:01:01.7]} 33. h5 {[%clk 0:01:15]}
33... gxh5 {[%clk 0:01:01.8]} 34. Rg1 {[%clk 0:01:04.6]} 34... Rg8 {[%clk
0:01:02.6]} 35. Nh4 {[%clk 0:00:41.4]} 35... Qe6 {[%clk 0:00:56.3]} 36. Rxg8+
{[%clk 0:00:27.7]} 36... Rxg8 {[%clk 0:00:55.9]} 37. Rxa5 {[%clk 0:00:28.9]}
37... Rg4 {[%clk 0:00:55.5]} 38. Ra8+ {[%clk 0:00:29.7]} 38... Kg7 {[%clk
0:00:55.6]} 39. Ng2 {[%clk 0:00:30.8]} 39... h4 {[%clk 0:00:49.8]} 40. Qf3
{[%clk 0:00:30.8]} 40... Qg6 {[%clk 0:00:44.7]} 41. Ra7 {[%clk 0:00:31.7]} 41...
Kf8 {[%clk 0:00:42.9]} 42. Ra8+ {[%clk 0:00:32.4]} 42... Kf7 {[%clk 0:00:43.6]}
43. Ra7 {[%clk 0:00:23.9]} 43... Rg3 {[%clk 0:00:43.5]} 44. e6+ {[%clk 0:00:22]}
44... Kf6 {[%clk 0:00:24.1]} 45. Qe2 {[%clk 0:00:17.5]} 45... Qg4 {[%clk
0:00:20.4]} 46. Qxg4 {[%clk 0:00:17]} 46... Rxg4 {[%clk 0:00:18.7]} 47. Rc7
{[%clk 0:00:17.8]} 47... Kxe6 {[%clk 0:00:17.8]} 48. Rxc6+ {[%clk 0:00:19.2]}
48... Bd6 {[%clk 0:00:19.1]} 49. Rb6 {[%clk 0:00:18.2]} 49... b4 {[%clk
0:00:20.2]} 50. Kh3 {[%clk 0:00:04.7]} 50... Rg3+ {[%clk 0:00:20.3]} 51. Kh2
{[%clk 0:00:06.2]} 51... Rg4 {[%clk 0:00:21.4]} 52. Kh3 {[%clk 0:00:06.8]} 52...
Kd7 {[%clk 0:00:21.8]} 53. Nxh4 {[%clk 0:00:06.7]} 53... Rxf4 {[%clk 0:00:21.5]}
54. Rb7+ {[%clk 0:00:08]} 54... Bc7 {[%clk 0:00:22.3]} 55. Ra7 {[%clk
0:00:04.4]} 55... Rf2 {[%clk 0:00:22.8]} 56. Ng2 {[%clk 0:00:05.4]} 56... f4
{[%clk 0:00:22.9]} 57. Ra8 {[%clk 0:00:04.3]} 57... f3 {[%clk 0:00:22.8]} 58.
Ne3 {[%clk 0:00:05.7]} 58... Rh2+ {[%clk 0:00:21.4]} 59. Kg4 {[%clk 0:00:06.8]}
59... f2 {[%clk 0:00:22.4]} 60. Rf8 {[%clk 0:00:08]} 60... Bd6 {[%clk
0:00:21.5]} 61. Rf7+ {[%clk 0:00:08.9]} 61... Ke6 {[%clk 0:00:22.5]} 62. Rf3
{[%clk 0:00:10.6]} 62... Be5 {[%clk 0:00:21.8]} 63. c3 {[%clk 0:00:10.4]} 63...
bxc3 {[%clk 0:00:22.4]} 64. bxc3 {[%clk 0:00:12.3]} 64... Bxc3 {[%clk
0:00:23.6]} 65. Nf1 {[%clk 0:00:11.7]} 65... Rg2+ {[%clk 0:00:20.2]} 66. Kh3
{[%clk 0:00:12.9]} 66... Rg1 {[%clk 0:00:18.5]} 67. Rxf2 {[%clk 0:00:13.6]}
67... Bd4 {[%clk 0:00:18.9]} 68. Re2+ {[%clk 0:00:13]} 68... Kd5 {[%clk
0:00:17.4]} 69. Ng3 {[%clk 0:00:14.1]} 69... Rb1 {[%clk 0:00:16.5]} 70. Nf5
{[%clk 0:00:10.4]} 70... Rxb3 {[%clk 0:00:16.5]} 71. Ne7+ {[%clk 0:00:12]} 71...
Kd6 {[%clk 0:00:16.8]} 72. Nf5+ {[%clk 0:00:13.3]} 72... Kc6 {[%clk 0:00:17.5]}
73. Re6+ {[%clk 0:00:12.2]} 73... Kb5 {[%clk 0:00:15.9]} 74. Kg4 {[%clk
0:00:13.1]} 74... Rxd3 {[%clk 0:00:16.5]} 75. Kf4 {[%clk 0:00:14.8]} 75... Rd1
{[%clk 0:00:16.5]} 76. Re8 {[%clk 0:00:14.1]} 76... Rf1+ {[%clk 0:00:15.9]} 77.
Kg4 {[%clk 0:00:15.6]} 77... h5+ {[%clk 0:00:15.7]} 78. Kg5 {[%clk 0:00:16.2]}
78... Kc4 {[%clk 0:00:15.6]} 79. Rd8 {[%clk 0:00:15]} 79... Rf2 {[%clk
0:00:14.7]} 80. Rd7 {[%clk 0:00:15.2]} 80... Kd3 {[%clk 0:00:15.1]} 81. Ra7
{[%clk 0:00:12.1]} 81... Be5 {[%clk 0:00:13.3]} 82. Ra3+ {[%clk 0:00:10.2]}
82... Kc4 {[%clk 0:00:13.5]} 83. Ne3+ {[%clk 0:00:10.7]} 83... Kb4 {[%clk
0:00:14.3]} 84. Rd3 {[%clk 0:00:03.8]} 84... Bf4+ {[%clk 0:00:14.9]} 85. Kxh5
{[%clk 0:00:05.4]} 85... Bxe3 {[%clk 0:00:16.1]} 0-1

[Event "*** Qualifier 1: Titled Tuesday 3|2 Blitz"]
[Site "Chess.com"]
[Date "2017.04.04"]
[Round "4"]
[White "FelixBlohberger"]
[Black "jcgs1030"]
[Result "1/2-1/2"]
[WhiteElo "2222"]
[BlackElo "2285"]
[TimeControl "180+2"]
[EndTime "13:56:04 PDT"]
[Termination "Game drawn - insufficient material"]

1. d4 {[%clk 0:02:56.6]} 1... Nf6 {[%clk 0:02:58.1]} 2. Nf3 {[%clk 0:02:54.8]}
2... g6 {[%clk 0:02:47.1]} 3. Bg5 {[%clk 0:02:52.6]} 3... Ne4 {[%clk 0:02:46.6]}
4. Bf4 {[%clk 0:02:50.5]} 4... Bg7 {[%clk 0:02:47]} 5. Nbd2 {[%clk 0:02:50.3]}
5... d5 {[%clk 0:02:45.5]} 6. c3 {[%clk 0:02:50.5]} 6... Nxd2 {[%clk 0:02:37.8]}
7. Qxd2 {[%clk 0:02:49.6]} 7... Bf5 {[%clk 0:02:35]} 8. Bh6 {[%clk 0:02:45.3]}
8... Kf8 {[%clk 0:02:33.5]} 9. h4 {[%clk 0:02:35.9]} 9... Nd7 {[%clk 0:02:32.5]}
10. h5 {[%clk 0:02:30]} 10... Nf6 {[%clk 0:02:30.8]} 11. Bxg7+ {[%clk
0:02:25.7]} 11... Kxg7 {[%clk 0:02:26.2]} 12. h6+ {[%clk 0:02:27.6]} 12... Kf8
{[%clk 0:02:26.7]} 13. e3 {[%clk 0:02:28.2]} 13... Qd6 {[%clk 0:02:22.5]} 14.
Bd3 {[%clk 0:02:25.6]} 14... Bxd3 {[%clk 0:02:20.3]} 15. Qxd3 {[%clk 0:02:27.5]}
15... Ne4 {[%clk 0:02:21.4]} 16. Ne5 {[%clk 0:02:07.2]} 16... f6 {[%clk
0:02:20.7]} 17. Nc4 {[%clk 0:01:28.3]} 17... Qa6 {[%clk 0:01:51.5]} 18. b3
{[%clk 0:01:28.7]} 18... dxc4 {[%clk 0:01:50.2]} 19. Qxe4 {[%clk 0:01:27.3]}
19... cxb3 {[%clk 0:01:51.7]} 20. Qb1 {[%clk 0:01:17.5]} 20... bxa2 {[%clk
0:01:45.4]} 21. Rxa2 {[%clk 0:01:19.4]} 21... Qc6 {[%clk 0:01:46.4]} 22. O-O
{[%clk 0:01:17.1]} 22... Kf7 {[%clk 0:01:46.9]} 23. Qb3+ {[%clk 0:01:15.2]}
23... e6 {[%clk 0:01:46.6]} 24. Rb1 {[%clk 0:01:14.2]} 24... b6 {[%clk
0:01:47.4]} 25. c4 {[%clk 0:01:06.9]} 25... Rhd8 {[%clk 0:01:47.1]} 26. f3
{[%clk 0:00:58.9]} 26... Rd7 {[%clk 0:01:40.5]} 27. Kf2 {[%clk 0:00:54.5]} 27...
a5 {[%clk 0:01:37.3]} 28. c5 {[%clk 0:00:50.9]} 28... bxc5 {[%clk 0:01:34.6]}
29. Rc2 {[%clk 0:00:37.8]} 29... a4 {[%clk 0:00:55]} 30. Qa3 {[%clk 0:00:33.5]}
30... c4 {[%clk 0:00:51.2]} 31. Rbc1 {[%clk 0:00:33.1]} 31... Qd6 {[%clk
0:00:49.7]} 32. Qa2 {[%clk 0:00:20.2]} 32... Qh2 {[%clk 0:00:33.6]} 33. Rxc4
{[%clk 0:00:20.6]} 33... Qh4+ {[%clk 0:00:34]} 34. Ke2 {[%clk 0:00:16.2]} 34...
Qg3 {[%clk 0:00:34.8]} 35. Kf1 {[%clk 0:00:16.7]} 35... g5 {[%clk 0:00:29.2]}
36. Rxa4 {[%clk 0:00:13.7]} 36... Rxa4 {[%clk 0:00:24.8]} 37. Qxa4 {[%clk
0:00:15.6]} 37... Re7 {[%clk 0:00:26.3]} 38. Qc2 {[%clk 0:00:16.5]} 38... Qh2
{[%clk 0:00:25.8]} 39. Qxh7+ {[%clk 0:00:16.2]} 39... Ke8 {[%clk 0:00:26.4]} 40.
Qg6+ {[%clk 0:00:15.6]} 40... Kd7 {[%clk 0:00:26.1]} 41. Kf2 {[%clk 0:00:13.4]}
41... Qh4+ {[%clk 0:00:26.6]} 42. Kg1 {[%clk 0:00:13.5]} 42... g4 {[%clk
0:00:21.8]} 43. fxg4 {[%clk 0:00:07.4]} 43... Qg3 {[%clk 0:00:22.1]} 44. Rf1
{[%clk 0:00:05.4]} 44... Qxe3+ {[%clk 0:00:22.8]} 45. Kh2 {[%clk 0:00:06]} 45...
Qxd4 {[%clk 0:00:21.9]} 46. h7 {[%clk 0:00:06.7]} 46... Qe5+ {[%clk 0:00:20.2]}
47. Kh1 {[%clk 0:00:07.4]} 47... f5 {[%clk 0:00:20.2]} 48. gxf5 {[%clk
0:00:06.9]} 48... exf5 {[%clk 0:00:20.8]} 49. Qxf5+ {[%clk 0:00:04.3]} 49...
Qxf5 {[%clk 0:00:22.1]} 50. Rxf5 {[%clk 0:00:06.2]} 50... Rxh7+ {[%clk
0:00:23.6]} 51. Kg1 {[%clk 0:00:08.1]} 51... Ke6 {[%clk 0:00:25]} 52. Rc5 {[%clk
0:00:08.7]} 52... Kd6 {[%clk 0:00:26.1]} 53. Rc3 {[%clk 0:00:09.9]} 53... c5
{[%clk 0:00:27.6]} 54. Kf2 {[%clk 0:00:11.1]} 54... Rf7+ {[%clk 0:00:28.6]} 55.
Kg3 {[%clk 0:00:11.6]} 55... Rg7+ {[%clk 0:00:29.7]} 56. Kf3 {[%clk 0:00:11.9]}
56... Ke5 {[%clk 0:00:30.9]} 57. Rxc5+ {[%clk 0:00:12.1]} 57... Kf6 {[%clk
0:00:28.9]} 58. g4 {[%clk 0:00:12.9]} 58... Ra7 {[%clk 0:00:27]} 59. Rc6+ {[%clk
0:00:13.4]} 59... Kg5 {[%clk 0:00:27.7]} 60. Rc5+ {[%clk 0:00:14.7]} 60... Kg6
{[%clk 0:00:27]} 61. Kg3 {[%clk 0:00:15.1]} 61... Ra1 {[%clk 0:00:26.9]} 62.
Rc6+ {[%clk 0:00:14.3]} 62... Kg5 {[%clk 0:00:27.4]} 63. Rc5+ {[%clk 0:00:16]}
63... Kg6 {[%clk 0:00:28.6]} 64. Rc4 {[%clk 0:00:11.5]} 64... Kg5 {[%clk
0:00:28.9]} 65. Rc5+ {[%clk 0:00:12]} 65... Kg6 {[%clk 0:00:30]} 66. Kf4 {[%clk
0:00:12.4]} 66... Rf1+ {[%clk 0:00:29.2]} 67. Ke3 {[%clk 0:00:12.2]} 67... Rg1
{[%clk 0:00:28.4]} 68. Kf3 {[%clk 0:00:13.3]} 68... Rf1+ {[%clk 0:00:29.4]} 69.
Kg2 {[%clk 0:00:14.3]} 69... Ra1 {[%clk 0:00:29.8]} 70. Rc3 {[%clk 0:00:14.3]}
70... Kg5 {[%clk 0:00:30.3]} 71. Kh3 {[%clk 0:00:14.2]} 71... Rh1+ {[%clk
0:00:29]} 72. Kg2 {[%clk 0:00:15.3]} 72... Rh4 {[%clk 0:00:26.9]} 73. Rc5+
{[%clk 0:00:05.6]} 73... Kf4 {[%clk 0:00:23.6]} 74. Rc4+ {[%clk 0:00:07.5]}
74... Kg5 {[%clk 0:00:24.3]} 75. Kg3 {[%clk 0:00:07.7]} 75... Rh1 {[%clk
0:00:23]} 76. Rc5+ {[%clk 0:00:08.4]} 76... Kg6 {[%clk 0:00:24.4]} 77. Rc6+
{[%clk 0:00:09.1]} 77... Kg5 {[%clk 0:00:24.5]} 78. Rc5+ {[%clk 0:00:10.8]}
78... Kg6 {[%clk 0:00:25.7]} 79. Kg2 {[%clk 0:00:06.8]} 79... Ra1 {[%clk
0:00:24.6]} 80. Kh3 {[%clk 0:00:07.3]} 80... Rh1+ {[%clk 0:00:25]} 81. Kg2
{[%clk 0:00:08.3]} 81... Ra1 {[%clk 0:00:25.2]} 82. Kf3 {[%clk 0:00:09.5]} 82...
Rf1+ {[%clk 0:00:23.3]} 83. Ke2 {[%clk 0:00:06.7]} 83... Rf4 {[%clk 0:00:22.4]}
84. g5 {[%clk 0:00:05.2]} 84... Rg4 {[%clk 0:00:23.1]} 85. Kf3 {[%clk 0:00:06]}
85... Rxg5 {[%clk 0:00:24.1]} 86. Rxg5+ {[%clk 0:00:07.9]} 86... Kxg5 {[%clk
0:00:26]} 1/2-1/2

[Event "*** Qualifier 1: Titled Tuesday 3|2 Blitz"]
[Site "Chess.com"]
[Date "2017.04.04"]
[Round "4"]
[White "evgenyermolaev"]
[Black "poummba"]
[Result "1/2-1/2"]
[WhiteElo "2386"]
[BlackElo "2390"]
[TimeControl "180+2"]
[EndTime "13:56:25 PDT"]
[Termination "Game drawn - insufficient material"]

1. e4 {[%clk 0:03:01.9]} 1... c6 {[%clk 0:02:59.7]} 2. d4 {[%clk 0:03:00.9]}
2... d5 {[%clk 0:03:01.6]} 3. e5 {[%clk 0:03:02.5]} 3... c5 {[%clk 0:03:02.9]}
4. dxc5 {[%clk 0:03:02.8]} 4... e6 {[%clk 0:03:04.1]} 5. a3 {[%clk 0:03:03.3]}
5... Bxc5 {[%clk 0:03:04.9]} 6. b4 {[%clk 0:03:04.5]} 6... Bb6 {[%clk
0:03:06.1]} 7. Nf3 {[%clk 0:03:01]} 7... a5 {[%clk 0:03:04.1]} 8. Bb2 {[%clk
0:02:59.7]} 8... axb4 {[%clk 0:03:05.3]} 9. axb4 {[%clk 0:03:01.6]} 9... Rxa1
{[%clk 0:03:06.4]} 10. Bxa1 {[%clk 0:03:03.5]} 10... Na6 {[%clk 0:03:08.1]} 11.
Bxa6 {[%clk 0:02:30.7]} 11... bxa6 {[%clk 0:03:09]} 12. O-O {[%clk 0:02:32.5]}
12... Ne7 {[%clk 0:03:09.1]} 13. Nbd2 {[%clk 0:02:28.9]} 13... Bd7 {[%clk
0:03:05.5]} 14. c4 {[%clk 0:02:22.1]} 14... O-O {[%clk 0:02:54.7]} 15. Qb3
{[%clk 0:01:48.9]} 15... a5 {[%clk 0:02:41.7]} 16. c5 {[%clk 0:01:16.9]} 16...
Ba7 {[%clk 0:02:42.1]} 17. Rc1 {[%clk 0:01:17.8]} 17... axb4 {[%clk 0:02:37.4]}
18. Qxb4 {[%clk 0:01:19.1]} 18... Qb8 {[%clk 0:02:19.1]} 19. Qg4 {[%clk
0:01:10.6]} 19... Rc8 {[%clk 0:02:10]} 20. Ng5 {[%clk 0:00:44.7]} 20... h6
{[%clk 0:01:52.7]} 21. Rb1 {[%clk 0:00:39]} 21... Qc7 {[%clk 0:01:41.1]} 22.
Ngf3 {[%clk 0:00:39.6]} 22... Bxc5 {[%clk 0:01:34.2]} 23. h3 {[%clk 0:00:34.4]}
23... Qa7 {[%clk 0:01:34.1]} 24. Bd4 {[%clk 0:00:24.9]} 24... Nf5 {[%clk
0:01:32.5]} 25. Bxc5 {[%clk 0:00:23.6]} 25... Qxc5 {[%clk 0:01:33.2]} 26. Re1
{[%clk 0:00:11.6]} 26... Bb5 {[%clk 0:01:29.8]} 27. Nb3 {[%clk 0:00:12.7]} 27...
Qc3 {[%clk 0:01:23.5]} 28. Nbd4 {[%clk 0:00:13.7]} 28... Nxd4 {[%clk 0:01:23.3]}
29. Qxd4 {[%clk 0:00:15.6]} 29... Qxd4 {[%clk 0:01:20.5]} 30. Nxd4 {[%clk
0:00:17.5]} 30... Bd3 {[%clk 0:01:20.3]} 31. f3 {[%clk 0:00:15.2]} 31... g5
{[%clk 0:01:17.1]} 32. Kf2 {[%clk 0:00:16.1]} 32... Rb8 {[%clk 0:01:16.1]} 33.
Ke3 {[%clk 0:00:16.9]} 33... Bg6 {[%clk 0:01:16.1]} 34. Re2 {[%clk 0:00:16.3]}
34... Rb1 {[%clk 0:01:15.9]} 35. Ra2 {[%clk 0:00:10.7]} 35... Kg7 {[%clk
0:01:01.4]} 36. Re2 {[%clk 0:00:11.4]} 36... Rd1 {[%clk 0:00:49.7]} 37. Rd2
{[%clk 0:00:12]} 37... Rc1 {[%clk 0:00:48.1]} 38. Kf2 {[%clk 0:00:10.7]} 38...
Bb1 {[%clk 0:00:48.1]} 39. Kg3 {[%clk 0:00:10.7]} 39... Re1 {[%clk 0:00:47.3]}
40. Ne2 {[%clk 0:00:05.4]} 40... Kg6 {[%clk 0:00:41.4]} 41. Kf2 {[%clk
0:00:04.8]} 41... Rh1 {[%clk 0:00:42.6]} 42. Kg3 {[%clk 0:00:05.8]} 42... Bf5
{[%clk 0:00:38.8]} 43. Nd4 {[%clk 0:00:06.1]} 43... Re1 {[%clk 0:00:37.8]} 44.
Ne2 {[%clk 0:00:06.9]} 44... h5 {[%clk 0:00:37.9]} 45. Kf2 {[%clk 0:00:07.7]}
45... Rb1 {[%clk 0:00:38.8]} 46. Nd4 {[%clk 0:00:08.2]} 46... Rc1 {[%clk
0:00:30.4]} 47. Ne2 {[%clk 0:00:08.7]} 47... Ra1 {[%clk 0:00:31]} 48. Nd4 {[%clk
0:00:08.3]} 48... Ra4 {[%clk 0:00:28.7]} 49. Ne2 {[%clk 0:00:08.7]} 49... Bb1
{[%clk 0:00:26.8]} 50. Nc3 {[%clk 0:00:09.3]} 50... Rb4 {[%clk 0:00:27.4]} 51.
Ne2 {[%clk 0:00:10.4]} 51... Kf5 {[%clk 0:00:20.3]} 52. Nd4+ {[%clk 0:00:11.6]}
52... Kg6 {[%clk 0:00:20.1]} 53. Ne2 {[%clk 0:00:12]} 53... Bf5 {[%clk
0:00:20.5]} 54. Nd4 {[%clk 0:00:13]} 54... Ra4 {[%clk 0:00:15.8]} 55. Ne2 {[%clk
0:00:12.3]} 55... Kg7 {[%clk 0:00:16.2]} 56. Nd4 {[%clk 0:00:13]} 56... Ra5
{[%clk 0:00:16.6]} 57. Ke3 {[%clk 0:00:13]} 57... Bg6 {[%clk 0:00:17.9]} 58. Kf2
{[%clk 0:00:13.6]} 58... Rc5 {[%clk 0:00:19]} 59. Ke3 {[%clk 0:00:13.5]} 59...
Kf8 {[%clk 0:00:19.8]} 60. Kf2 {[%clk 0:00:13.4]} 60... Kg7 {[%clk 0:00:19.6]}
61. Ke3 {[%clk 0:00:14.6]} 61... Rc3+ {[%clk 0:00:18.8]} 62. Kf2 {[%clk
0:00:15.4]} 62... Bb1 {[%clk 0:00:19.2]} 63. Rb2 {[%clk 0:00:10.1]} 63... Bd3
{[%clk 0:00:17.7]} 64. Rd2 {[%clk 0:00:10.6]} 64... Bc4 {[%clk 0:00:18.6]} 65.
Rd1 {[%clk 0:00:08.8]} 65... Ra3 {[%clk 0:00:17.8]} 66. Rd2 {[%clk 0:00:10]}
66... Ra1 {[%clk 0:00:18.9]} 67. Ke3 {[%clk 0:00:09.5]} 67... Re1+ {[%clk
0:00:18.9]} 68. Kf2 {[%clk 0:00:10.5]} 68... Rxe5 {[%clk 0:00:19.9]} 69. g4
{[%clk 0:00:08.5]} 69... hxg4 {[%clk 0:00:17.9]} 70. hxg4 {[%clk 0:00:09.3]}
70... f5 {[%clk 0:00:10.9]} 71. Nc6 {[%clk 0:00:10]} 71... Re2+ {[%clk
0:00:11.8]} 72. Rxe2 {[%clk 0:00:10.7]} 72... Bxe2 {[%clk 0:00:13.7]} 73. Kxe2
{[%clk 0:00:12.6]} 73... Kf6 {[%clk 0:00:14.3]} 74. Nd4 {[%clk 0:00:09.6]} 74...
Ke5 {[%clk 0:00:13.1]} 75. Ke3 {[%clk 0:00:06.4]} 75... Kf6 {[%clk 0:00:14.2]}
76. gxf5 {[%clk 0:00:06.5]} 76... exf5 {[%clk 0:00:15.2]} 77. Ne2 {[%clk
0:00:07.7]} 77... Ke5 {[%clk 0:00:15.2]} 78. Nd4 {[%clk 0:00:08.6]} 78... Kf6
{[%clk 0:00:12.2]} 79. Nc6 {[%clk 0:00:06.9]} 79... Ke6 {[%clk 0:00:09.8]} 80.
Nd4+ {[%clk 0:00:05.7]} 80... Ke5 {[%clk 0:00:10.8]} 81. Ne2 {[%clk 0:00:06.2]}
81... Kf6 {[%clk 0:00:06.3]} 82. Kd4 {[%clk 0:00:06.5]} 82... f4 {[%clk
0:00:05.2]} 83. Kxd5 {[%clk 0:00:05.9]} 83... g4 {[%clk 0:00:06.4]} 84. fxg4
{[%clk 0:00:04.9]} 84... Kg5 {[%clk 0:00:07.6]} 85. Nxf4 {[%clk 0:00:04.7]}
85... Kxg4 {[%clk 0:00:08.9]} 1/2-1/2